fUST/lending_fUST_20260324
["ID","MTS","AMOUNT","RATE_DAILY","PERIOD"]
[408869351,1774363847891,-578.20924308,0.00013549,2]
[408869352,1774363847900,-600.0,0.00013552,2]
[408869353,1774363847911,-180.09737655,0.00013553,2]
[408869354,1774363847920,-151.0,0.00013553,2]
[408869355,1774363847929,-151.0,0.00013553,2]
[408869356,1774363847939,-151.0,0.00013553,2]
[408869357,1774363847948,-151.0,0.00013553,2]
[408869358,1774363847958,-151.0,0.00013553,2]
[408869359,1774363847968,-151.0,0.00013553,2]
[408869360,1774363847978,-151.0,0.00013553,2]
[408869361,1774363847987,-151.0,0.00013553,2]
[408869362,1774363847997,-151.0,0.00013553,2]
[408869363,1774363848007,-151.0,0.00013553,2]
[408869364,1774363848016,-151.0,0.00013553,2]
[408869365,1774363848025,-151.0,0.00013553,2]
[408869366,1774363848035,-151.0,0.00013553,2]
[408869367,1774363848173,-213.23301371,0.00013553,2]
[408869368,1774363848187,-500.0,0.0001359,2]
[408869369,1774363848196,-500.79682489,0.0001359,2]
[408869370,1774363848205,-1000.0,0.000136,2]
[408869371,1774363848214,-599.60298507,0.00013604,2]
[408869372,1774363848223,-621.78829552,0.00013659,2]
[408869373,1774363848232,-500.0,0.00013698,2]
[408869374,1774363848241,-500.0,0.00013698,2]
[408869375,1774363848250,-500.0,0.00013698,2]
[408869376,1774363848259,-500.0,0.00013698,2]
[408869377,1774363848268,-500.0,0.00013698,2]
[408869378,1774363848277,-500.0,0.00013698,2]
[408869379,1774363848286,-500.0,0.00013698,2]
[408869380,1774363848295,-500.0,0.00013698,2]
[408869381,1774363848304,-500.0,0.00013698,2]
[408869382,1774363848314,-500.0,0.00013698,2]
[408869383,1774363848324,-500.0,0.00013698,2]
[408869384,1774363848334,-500.0,0.00013698,2]
[408869385,1774363848343,-500.0,0.00013698,2]
[408869386,1774363848352,-500.0,0.00013698,2]
[408869387,1774363848362,-1000.0,0.00013699,2]
[408869388,1774363848371,-5000.0,0.00013699,2]
[408869389,1774363848381,-5000.0,0.00013699,2]
[408869390,1774363848390,-1143.792223,0.00013699,2]
[408869391,1774363848399,-1000.0,0.00013699,2]
[408869392,1774363848408,-644.79446246,0.00013714,2]
[408869393,1774363848417,-168.20464309,0.00013755,2]
[408869394,1774363848426,-296.264152,0.00013755,2]
[408869395,1774363848436,-333.78367792,0.00013755,2]
[408869396,1774363848445,-224.55640763,0.00013755,2]
[408869397,1774363848454,-350.51851754,0.00013755,2]
[408869398,1774363848463,-533.2754736,0.00013755,2]
[408869399,1774363848473,-385.31438968,0.00013755,2]
[408869400,1774363848485,-693.56590142,0.00013755,2]
[408869401,1774363848495,-1233.00604696,0.00013755,2]
[408869402,1774363848504,-1926.57194838,0.00013755,2]
[408869403,1774363848513,-302.76835756,0.00013755,2]
[408869404,1774363848523,-668.65185757,0.00013769,2]
[408869405,1774363848532,-500.0,0.0001382,2]
[408869406,1774363848541,-1000.0,0.00013821,2]
[408869407,1774363848551,-431.26770355,0.00013821,2]
[408869408,1774363848560,-503.86526292,0.00013821,2]
[408869409,1774363848570,-1000.0,0.00013821,2]
[408869410,1774363848579,-693.3919763,0.00013824,2]
[408869411,1774363848587,-719.04747942,0.00013879,2]
[408869412,1774363848597,-745.65223616,0.00013934,2]
[408869413,1774363848606,-561.558676,0.00013977,2]
[408869414,1774363848615,-557.5788265,0.00013987,2]
[408869415,1774363848626,-2230.315306,0.00013987,2]
[408869416,1774363848635,-773.2413689,0.00013989,2]
[408869417,1774363848644,-801.85129955,0.00014044,2]
[408869418,1774363848653,-1500.0,0.00014068,2]
[408869419,1774363848663,-1500.0,0.00014068,2]
[408869420,1774363848673,-1001.20303353,0.00014068,2]
[408869421,1774363848683,-502.97636802,0.00014138,2]
[408869422,1774363848692,-948.04528639,0.0001415,2]
[408869423,1774363848703,-500.0,0.00014368,2]
[408869424,1774363848712,-1500.0,0.00014368,2]
[408869425,1774363848723,-1500.0,0.00014368,2]
[408869426,1774363848732,-5000.0,0.00014504,2]
[408869427,1774363848741,-10590.9008,0.00014504,2]
[408869428,1774363848750,-753.50480447,0.00014515,5]
[408869429,1774363848759,-578.20924308,0.00014535,2]
[408869430,1774363848768,-2312.83697232,0.00014535,2]
[408869431,1774363848777,-561.558676,0.00014542,2]
[408869432,1774363848786,-1008.75768597,0.00014562,2]
[408869433,1774363848795,-789.0,0.000146,2]
[408869434,1774363848804,-500.0,0.00014608,2]
[408869435,1774363848813,-647.366,0.00014609,2]
[408869436,1774363848823,-2193.0,0.00014609,2]
[408869437,1774363848834,-1399.0,0.00014609,2]
[408869438,1774363848843,-150.378,0.00014609,2]
[408869439,1774363848852,-151.457,0.00014609,2]
[408869440,1774363848861,-151.984,0.00014609,2]
[408869441,1774363848870,-2000.0,0.00014616,2]
[408869442,1774363848880,-2000.0,0.00014616,2]
[408869443,1774363848889,-538.25485789,0.00014646,2]
[408869444,1774363848898,-5000.0,0.00014649,2]
[408869445,1774363848907,-1808.4219188,0.00014702,2]
[408869446,1774363848916,-226.66142695,0.00014808,2]
[408869447,1774363848925,-720.0,0.00014907,2]
[408869448,1774363848934,-2000.0,0.00014916,2]
[408869449,1774363848942,-502.62691012,0.00014916,2]
[408869450,1774363848951,-338.5678978,0.00015,2]
[408869451,1774363848960,-1300.0,0.00015,2]
[408869452,1774363848969,-500.0,0.00015,2]
[408869453,1774363848978,-318.0,0.00015,2]
[408869454,1774363848987,-186.546426,0.00015068,2]
[408869455,1774363848996,-707.06472364,0.00015083,2]
[408869456,1774363849005,-2398.4119403,0.00015083,2]
[408869457,1774363849014,-561.558676,0.00015107,2]
[408869458,1774363849023,-500.0,0.00015135,2]
[408869459,1774363849033,-2859.624124,0.00015136,2]
[408869460,1774363849042,-2500.0,0.00015164,2]
[408869461,1774363849051,-2500.0,0.00015164,2]
[408869462,1774363849060,-166.0,0.00015171,2]
[408869463,1774363849069,-690.0,0.00015171,2]
[408869464,1774363849078,-155.0,0.00015171,2]
[408869465,1774363849087,-690.0,0.00015171,2]
[408869466,1774363849096,-646.0,0.00015171,2]
[408869467,1774363849105,-166.0,0.00015171,2]
[408869468,1774363849114,-155.0,0.00015171,2]
[408869469,1774363849123,-690.0,0.00015171,2]
[408869470,1774363849133,-166.0,0.00015171,2]
[408869471,1774363849143,-166.0,0.00015171,2]
[408869472,1774363849152,-158.855467,0.00015171,2]
[408869473,1774363849163,-646.0,0.00015171,2]
[408869474,1774363849172,-690.0,0.00015171,2]
[408869475,1774363849181,-166.0,0.00015171,2]
[408869476,1774363849191,-646.0,0.00015171,2]
[408869477,1774363849201,-172.0,0.00015171,2]
[408869478,1774363849210,-690.0,0.00015171,2]
[408869479,1774363849219,-166.0,0.00015171,2]
[408869480,1774363849229,-169.61889007,0.00015171,2]
[408869481,1774363849238,-690.0,0.00015171,2]
[408869482,1774363849248,-2601.0465821,0.00015252,2]
[408869483,1774363849257,-2500.0,0.00015464,2]
[408869484,1774363849269,-500.0,0.00015496,2]
[408869485,1774363849278,-1255.8246594,0.00015534,2]
[408869486,1774363849288,-500.0,0.00015549,2]
[408869487,1774363849297,-500.0,0.00015549,2]
[408869488,1774363849307,-500.0,0.00015549,2]
[408869489,1774363849316,-408.99130866,0.00015549,2]
[408869490,1774363849325,-500.0,0.00015549,2]
[408869491,1774363849334,-187.00520236,0.00015549,2]
[408869492,1774363849343,-500.07150662,0.00015549,2]
[408869493,1774363849353,-1481.32075999,0.00015614,2]
[408869494,1774363849362,-638.0683887,0.00015624,2]
[408869495,1774363849371,-2487.15318209,0.00015631,2]
[408869496,1774363849384,-500.67352224,0.00015646,2]
[408869497,1774363849393,-500.0,0.00015646,2]
[408869498,1774363849402,-164.106541,0.00015692,7]
[408869499,1774363849412,-189.86,0.00015692,7]
[408869500,1774363849421,-3000.0,0.00015712,2]
[408869501,1774363849430,-3000.0,0.00015712,2]
[408869502,1774363849439,-6485.3996549,0.00015754,2]
[408869503,1774363849449,-580.3719404,0.00015766,2]
[408869504,1774363849458,-203.729351,0.0001583,7]
[408869505,1774363849468,-230.747729,0.0001583,7]
[408869506,1774363849478,-305.901789,0.0001583,7]
[408869507,1774363849489,-500.0,0.00015948,2]
[408869508,1774363849498,-1642.48983566,0.00015949,2]
[408869509,1774363849507,-1351.0,0.00016,3]
[408869510,1774363849518,-500.0,0.00016,2]
[408869511,1774363849527,-2013.4212696,0.00016012,2]
[408869512,1774363849536,-280.2123573,0.00016035,2]
[408869513,1774363849545,-501.48348883,0.00016097,2]
[408869514,1774363849555,-502.6993793,0.00016097,2]
[408869515,1774363849564,-1000.0,0.00016097,2]
[408869516,1774363849574,-1001.69342998,0.00016097,2]
[408869517,1774363849583,-1010.41,0.00016153,2]
[408869518,1774363849591,-1010.41,0.00016153,2]
[408869519,1774363849605,-1010.41,0.00016153,2]
[408869520,1774363849617,-1010.41,0.00016153,2]
[408869521,1774363849631,-1010.41,0.00016153,2]
[408869522,1774363849643,-1010.41,0.00016153,2]
[408869523,1774363849655,-1010.41,0.00016153,2]
[408869524,1774363849665,-1010.41,0.00016153,2]
[408869525,1774363849675,-1010.41,0.00016153,2]
[408869526,1774363849688,-1010.41,0.00016153,2]
[408869527,1774363849700,-1010.41,0.00016153,2]
[408869528,1774363849711,-1010.41,0.00016153,2]
[408869529,1774363849723,-1010.41,0.00016153,2]
[408869530,1774363849736,-1010.41,0.00016153,2]
[408869531,1774363849747,-1010.41,0.00016153,2]
[408869532,1774363849759,-1010.41,0.00016153,2]
[408869533,1774363849771,-1010.41,0.00016153,2]
[408869534,1774363849783,-1010.41,0.00016153,2]
[408869535,1774363849797,-1010.41,0.00016153,2]
[408869536,1774363849809,-1785.61,0.00016153,2]
[408869537,1774363849820,-2579.17784983,0.00016179,2]
[408869538,1774363849832,-1000.0,0.00016194,2]
[408869539,1774363849844,-500.0,0.00016233,2]
[408869540,1774363849854,-3500.0,0.0001626,2]
[408869541,1774363849865,-3452.93975168,0.0001626,2]
[408869542,1774363849877,-225846.92858082,0.00016274,2]
[408869543,1774363849889,-1447.0882636,0.0001638,2]
[408869544,1774363849902,-864.0,0.00016398,2]
[408869545,1774363849912,-840.18219224,0.00016428,2]
[408869546,1774363849926,-5000.0,0.00016438,2]
[408869547,1774363849944,-500.0,0.00016438,2]
[408869548,1774363849955,-604.83254239,0.00016438,2]
[408869549,1774363849966,-432.05,0.00016438,2]
[408869550,1774363849977,-432.05,0.00016438,2]
[408869551,1774363849988,-432.05,0.00016438,2]
[408869552,1774363849999,-432.05,0.00016438,2]
[408869553,1774363850010,-432.05,0.00016438,2]
[408869554,1774363850022,-432.05,0.00016438,2]
[408869555,1774363850033,-432.05,0.00016438,2]
[408869556,1774363850044,-432.05,0.00016438,2]
[408869557,1774363850056,-432.05,0.00016438,2]
[408869558,1774363850068,-432.05,0.00016438,2]
[408869559,1774363850080,-432.05,0.00016438,2]
[408869560,1774363850092,-432.05,0.00016438,2]
[408869561,1774363850103,-432.05,0.00016438,2]
[408869562,1774363850113,-432.05,0.00016438,2]
[408869563,1774363850123,-270.761303,0.00016438,2]
[408869564,1774363850134,-270.761303,0.00016438,2]
[408869565,1774363850144,-270.761303,0.00016438,2]
[408869566,1774363850155,-270.761303,0.00016438,2]
[408869567,1774363850167,-270.761303,0.00016438,2]
[408869568,1774363850180,-270.761303,0.00016438,2]
[408869569,1774363850191,-270.761303,0.00016438,2]
[408869570,1774363850202,-151.0,0.00016438,2]
[408869571,1774363850212,-270.761303,0.00016438,2]
[408869572,1774363850223,-151.0,0.00016438,2]
[408869573,1774363850233,-151.0,0.00016438,2]
[408869574,1774363850243,-270.761303,0.00016438,2]
[408869575,1774363850256,-151.0,0.00016438,2]
[408869576,1774363850267,-270.761303,0.00016438,2]
[408869577,1774363850277,-151.0,0.00016438,2]
[408869578,1774363850287,-270.761303,0.00016438,2]
[408869579,1774363850297,-151.0,0.00016438,2]
[408869580,1774363850308,-270.761303,0.00016438,2]
[408869581,1774363850318,-151.0,0.00016438,2]
[408869582,1774363850328,-270.761303,0.00016438,2]
[408869583,1774363850339,-151.0,0.00016438,2]
[408869584,1774363850349,-270.761303,0.00016438,2]
[408869585,1774363850359,-270.761303,0.00016438,2]
[408869586,1774363850370,-151.0,0.00016438,2]
[408869587,1774363850382,-270.761303,0.00016438,2]
[408869588,1774363850393,-151.0,0.00016438,2]
[408869589,1774363850404,-270.761303,0.00016438,2]
[408869590,1774363850415,-270.761303,0.00016438,2]
[408869591,1774363850425,-151.0,0.00016438,2]
[408869592,1774363850436,-270.761303,0.00016438,2]
[408869593,1774363850447,-151.0,0.00016438,2]
[408869594,1774363850459,-270.761312,0.00016438,2]
[408869595,1774363850473,-151.0,0.00016438,2]
[408869596,1774363850484,-151.0,0.00016438,2]
[408869597,1774363850495,-297.923752,0.00016438,2]
[408869598,1774363850505,-151.0,0.00016438,2]
[408869599,1774363850517,-386.360114,0.00016438,2]
[408869600,1774363850529,-181.62179,0.00016438,2]
[408869601,1774363850540,-386.360114,0.00016438,2]
[408869602,1774363850555,-386.360114,0.00016438,2]
[408869603,1774363850566,-386.360114,0.00016438,2]
[408869604,1774363850576,-386.360114,0.00016438,2]
[408869605,1774363850586,-386.360114,0.00016438,2]
[408869606,1774363850597,-386.360114,0.00016438,2]
[408869607,1774363850607,-151.0,0.00016438,2]
[408869608,1774363850620,-386.360114,0.00016438,2]
[408869609,1774363850632,-386.360114,0.00016438,2]
[408869610,1774363850642,-151.0,0.00016438,2]
[408869611,1774363850653,-386.360114,0.00016438,2]
[408869612,1774363850664,-151.0,0.00016438,2]
[408869613,1774363850674,-386.360114,0.00016438,2]
[408869614,1774363850685,-151.0,0.00016438,2]
[408869615,1774363850697,-386.360114,0.00016438,2]
[408869616,1774363850708,-166.077777,0.00016438,2]
[408869617,1774363850719,-386.360114,0.00016438,2]
[408869618,1774363850730,-386.360114,0.00016438,2]
[408869619,1774363850740,-386.360114,0.00016438,2]
[408869620,1774363850752,-386.360114,0.00016438,2]
[408869621,1774363850763,-386.360114,0.00016438,2]
[408869622,1774363850775,-386.360114,0.00016438,2]
[408869623,1774363850786,-386.360114,0.00016438,2]
[408869624,1774363850797,-386.3601196,0.00016438,2]
[408869625,1774363850808,-151.0,0.00016438,2]
[408869626,1774363850818,-151.0,0.00016438,2]
[408869627,1774363850828,-151.0,0.00016438,2]
[408869628,1774363850839,-156.871579,0.00016438,2]
[408869629,1774363850850,-267.952696,0.00016438,2]
[408869630,1774363850860,-267.952696,0.00016438,2]
[408869631,1774363850871,-267.952696,0.00016438,2]
[408869632,1774363850884,-267.952696,0.00016438,2]
[408869633,1774363850895,-267.952696,0.00016438,2]
[408869634,1774363850905,-267.952696,0.00016438,2]
[408869635,1774363850915,-267.952696,0.00016438,2]
[408869636,1774363850926,-267.952696,0.00016438,2]
[408869637,1774363850936,-267.952696,0.00016438,2]
[408869638,1774363850947,-267.952696,0.00016438,2]
[408869639,1774363850957,-267.952696,0.00016438,2]
[408869640,1774363850967,-267.952696,0.00016438,2]
[408869641,1774363850978,-267.952696,0.00016438,2]
[408869642,1774363850990,-267.952696,0.00016438,2]
[408869643,1774363851000,-267.952696,0.00016438,2]
[408869644,1774363851011,-267.952696,0.00016438,2]
[408869645,1774363851021,-267.952696,0.00016438,2]
[408869646,1774363851032,-267.952696,0.00016438,2]
[408869647,1774363851043,-267.952696,0.00016438,2]
[408869648,1774363851054,-267.952689,0.00016438,2]
[408869649,1774363851065,-151.0,0.00016438,2]
[408869650,1774363851075,-151.0,0.00016438,2]
[408869651,1774363851087,-151.0,0.00016438,2]
[408869652,1774363851097,-151.0,0.00016438,2]
[408869653,1774363851108,-151.0,0.00016438,2]
[408869654,1774363851118,-151.0,0.00016438,2]
[408869655,1774363851130,-151.0,0.00016438,2]
[408869656,1774363851142,-151.0,0.00016438,2]
[408869657,1774363851151,-151.0,0.00016438,2]
[408869658,1774363851161,-177.640448,0.00016438,2]
[408869659,1774363851170,-194.052733,0.00016438,2]
[408869660,1774363851179,-194.052733,0.00016438,2]
[408869661,1774363851188,-194.052733,0.00016438,2]
[408869662,1774363851197,-194.052733,0.00016438,2]
[408869663,1774363851207,-194.052733,0.00016438,2]
[408869664,1774363851216,-194.052733,0.00016438,2]
[408869665,1774363851226,-194.052733,0.00016438,2]
[408869666,1774363851235,-194.052733,0.00016438,2]
[408869667,1774363851246,-194.052733,0.00016438,2]
[408869668,1774363851458,-194.052733,0.00016438,2]
[408869669,1774363851473,-194.052733,0.00016438,2]
[408869670,1774363851483,-194.052733,0.00016438,2]
[408869671,1774363851492,-194.052733,0.00016438,2]
[408869672,1774363851502,-194.052733,0.00016438,2]
[408869673,1774363851512,-194.052733,0.00016438,2]
[408869674,1774363851522,-194.052733,0.00016438,2]
[408869675,1774363851532,-194.052733,0.00016438,2]
[408869676,1774363851543,-194.052733,0.00016438,2]
[408869677,1774363851552,-194.052733,0.00016438,2]
[408869678,1774363851561,-194.052742,0.00016438,2]
[408869679,1774363851571,-471.904214,0.00016438,2]
[408869680,1774363851581,-471.904214,0.00016438,2]
[408869681,1774363851591,-471.904214,0.00016438,2]
[408869682,1774363851600,-471.904214,0.00016438,2]
[408869683,1774363851610,-471.904214,0.00016438,2]
[408869684,1774363851620,-471.904214,0.00016438,2]
[408869685,1774363851629,-471.904214,0.00016438,2]
[408869686,1774363851638,-471.904214,0.00016438,2]
[408869687,1774363851647,-471.904214,0.00016438,2]
[408869688,1774363851657,-471.904214,0.00016438,2]
[408869689,1774363851667,-471.904214,0.00016438,2]
[408869690,1774363851676,-471.904214,0.00016438,2]
[408869691,1774363851687,-471.904214,0.00016438,2]
[408869692,1774363851696,-471.904214,0.00016438,2]
[408869693,1774363851706,-471.904214,0.00016438,2]
[408869694,1774363851715,-471.904214,0.00016438,2]
[408869695,1774363851725,-471.904214,0.00016438,2]
[408869696,1774363851734,-471.904214,0.00016438,2]
[408869697,1774363851744,-471.904214,0.00016438,2]
[408869698,1774363851753,-471.904217,0.00016438,2]
[408869699,1774363851763,-168.505109,0.00016438,2]
[408869700,1774363851772,-168.505109,0.00016438,2]
[408869701,1774363851782,-168.505109,0.00016438,2]
[408869702,1774363851791,-168.505109,0.00016438,2]
[408869703,1774363851802,-168.505109,0.00016438,2]
[408869704,1774363851812,-168.505109,0.00016438,2]
[408869705,1774363851821,-168.505109,0.00016438,2]
[408869706,1774363851830,-168.505109,0.00016438,2]
[408869707,1774363851840,-151.0,0.00016438,2]
[408869708,1774363851850,-168.505109,0.00016438,2]
[408869709,1774363851859,-151.0,0.00016438,2]
[408869710,1774363851868,-168.505109,0.00016438,2]
[408869711,1774363851878,-151.0,0.00016438,2]
[408869712,1774363851888,-168.505109,0.00016438,2]
[408869713,1774363851897,-151.0,0.00016438,2]
[408869714,1774363851907,-168.505109,0.00016438,2]
[408869715,1774363851917,-151.0,0.00016438,2]
[408869716,1774363851926,-168.505109,0.00016438,2]
[408869717,1774363851935,-246.15883,0.00016438,2]
[408869718,1774363851944,-168.505109,0.00016438,2]
[408869719,1774363851953,-168.505109,0.00016438,2]
[408869720,1774363851962,-258.490314,0.00016438,2]
[408869721,1774363851971,-168.505109,0.00016438,2]
[408869722,1774363851981,-258.490314,0.00016438,2]
[408869723,1774363851990,-168.505109,0.00016438,2]
[408869724,1774363851999,-258.490314,0.00016438,2]
[408869725,1774363852008,-168.505109,0.00016438,2]
[408869726,1774363852018,-258.490314,0.00016438,2]
[408869727,1774363852027,-168.505109,0.00016438,2]
[408869728,1774363852037,-258.490314,0.00016438,2]
[408869729,1774363852047,-258.490314,0.00016438,2]
[408869730,1774363852056,-168.505101,0.00016438,2]
[408869731,1774363852065,-258.490314,0.00016438,2]
[408869732,1774363852075,-258.490314,0.00016438,2]
[408869733,1774363852084,-258.490314,0.00016438,2]
[408869734,1774363852094,-258.490314,0.00016438,2]
[408869735,1774363852104,-258.490314,0.00016438,2]
[408869736,1774363852113,-258.490314,0.00016438,2]
[408869737,1774363852122,-258.490314,0.00016438,2]
[408869738,1774363852131,-258.490314,0.00016438,2]
[408869739,1774363852140,-258.490314,0.00016438,2]
[408869740,1774363852150,-258.490314,0.00016438,2]
[408869741,1774363852159,-258.490314,0.00016438,2]
[408869742,1774363852168,-258.490314,0.00016438,2]
[408869743,1774363852178,-258.490314,0.00016438,2]
[408869744,1774363852187,-258.49031754,0.00016438,2]
[408869745,1774363852196,-151.0,0.00016438,2]
[408869746,1774363852206,-151.0,0.00016438,2]
[408869747,1774363852215,-151.0,0.00016438,2]
[408869748,1774363852225,-151.0,0.00016438,2]
[408869749,1774363852235,-151.0,0.00016438,2]
[408869750,1774363852244,-151.0,0.00016438,2]
[408869751,1774363852253,-151.0,0.00016438,2]
[408869752,1774363852263,-151.0,0.00016438,2]
[408869753,1774363852272,-151.0,0.00016438,2]
[408869754,1774363852282,-151.0,0.00016438,2]
[408869755,1774363852291,-214.738136,0.00016438,2]
[408869756,1774363852300,-151.0,0.00016438,2]
[408869757,1774363852309,-151.0,0.00016438,2]
[408869758,1774363852319,-151.0,0.00016438,2]
[408869759,1774363852329,-151.0,0.00016438,2]
[408869760,1774363852338,-151.0,0.00016438,2]
[408869761,1774363852348,-151.0,0.00016438,2]
[408869762,1774363852357,-151.0,0.00016438,2]
[408869763,1774363852366,-166.999334,0.00016438,2]
[408869764,1774363852375,-151.0,0.00016438,2]
[408869765,1774363852385,-165.172129,0.00016438,2]
[408869766,1774363852395,-151.0,0.00016438,2]
[408869767,1774363852404,-288.488455,0.00016438,2]
[408869768,1774363852415,-288.488455,0.00016438,2]
[408869769,1774363852424,-288.488455,0.00016438,2]
[408869770,1774363852433,-288.488455,0.00016438,2]
[408869771,1774363852442,-288.488455,0.00016438,2]
[408869772,1774363852452,-288.488455,0.00016438,2]
[408869773,1774363852461,-288.488455,0.00016438,2]
[408869774,1774363852471,-288.488455,0.00016438,2]
[408869775,1774363852485,-288.488455,0.00016438,2]
[408869776,1774363852494,-288.488455,0.00016438,2]
[408869777,1774363852504,-288.488455,0.00016438,2]
[408869778,1774363852513,-288.488455,0.00016438,2]
[408869779,1774363852522,-288.488455,0.00016438,2]
[408869780,1774363852532,-288.488455,0.00016438,2]
[408869781,1774363852541,-288.488455,0.00016438,2]
[408869782,1774363852551,-288.488455,0.00016438,2]
[408869783,1774363852560,-288.488455,0.00016438,2]
[408869784,1774363852569,-288.488455,0.00016438,2]
[408869785,1774363852579,-288.488455,0.00016438,2]
[408869786,1774363852588,-288.488451,0.00016438,2]
[408869787,1774363852598,-151.0,0.00016438,2]
[408869788,1774363852607,-151.0,0.00016438,2]
[408869789,1774363852616,-151.0,0.00016438,2]
[408869790,1774363852626,-151.0,0.00016438,2]
[408869791,1774363852636,-151.0,0.00016438,2]
[408869792,1774363852646,-151.0,0.00016438,2]
[408869793,1774363852655,-151.0,0.00016438,2]
[408869794,1774363852665,-151.0,0.00016438,2]
[408869795,1774363852674,-151.0,0.00016438,2]
[408869796,1774363852684,-151.0,0.00016438,2]
[408869797,1774363852694,-151.0,0.00016438,2]
[408869798,1774363852703,-151.0,0.00016438,2]
[408869799,1774363852712,-151.0,0.00016438,2]
[408869800,1774363852722,-231.622853,0.00016438,2]
[408869801,1774363852731,-151.0,0.00016438,2]
[408869802,1774363852741,-151.0,0.00016438,2]
[408869803,1774363852750,-151.0,0.00016438,2]
[408869804,1774363852760,-151.0,0.00016438,2]
[408869805,1774363852770,-151.0,0.00016438,2]
[408869806,1774363852780,-151.0,0.00016438,2]
[408869807,1774363852789,-151.0,0.00016438,2]
[408869808,1774363852799,-151.0,0.00016438,2]
[408869809,1774363852808,-151.0,0.00016438,2]
[408869810,1774363852817,-151.0,0.00016438,2]
[408869811,1774363852826,-151.0,0.00016438,2]
[408869812,1774363852835,-151.0,0.00016438,2]
[408869813,1774363852845,-151.0,0.00016438,2]
[408869814,1774363852854,-296.934119,0.00016438,2]
[408869815,1774363852863,-151.0,0.00016438,2]
[408869816,1774363852872,-151.0,0.00016438,2]
[408869817,1774363852882,-151.0,0.00016438,2]
[408869818,1774363852891,-151.0,0.00016438,2]
[408869819,1774363852901,-151.0,0.00016438,2]
[408869820,1774363852911,-151.0,0.00016438,2]
[408869821,1774363852919,-151.0,0.00016438,2]
[408869822,1774363852929,-151.0,0.00016438,2]
[408869823,1774363852938,-151.0,0.00016438,2]
[408869824,1774363852947,-197.307721,0.00016438,2]
[408869825,1774363852956,-168.0537,0.00016438,2]
[408869826,1774363852966,-168.0537,0.00016438,2]
[408869827,1774363852975,-168.0537,0.00016438,2]
[408869828,1774363852984,-168.0537,0.00016438,2]
[408869829,1774363852994,-168.0537,0.00016438,2]
[408869830,1774363853004,-168.0537,0.00016438,2]
[408869831,1774363853014,-168.0537,0.00016438,2]
[408869832,1774363853023,-168.0537,0.00016438,2]
[408869833,1774363853032,-168.0537,0.00016438,2]
[408869834,1774363853041,-168.0537,0.00016438,2]
[408869835,1774363853051,-168.0537,0.00016438,2]
[408869836,1774363853060,-168.0537,0.00016438,2]
[408869837,1774363853069,-168.0537,0.00016438,2]
[408869838,1774363853078,-168.0537,0.00016438,2]
[408869839,1774363853087,-168.0537,0.00016438,2]
[408869840,1774363853096,-168.0537,0.00016438,2]
[408869841,1774363853105,-168.0537,0.00016438,2]
[408869842,1774363853115,-168.0537,0.00016438,2]
[408869843,1774363853124,-168.0537,0.00016438,2]
[408869844,1774363853135,-168.053705,0.00016438,2]
[408869845,1774363853144,-151.0,0.00016438,2]
[408869846,1774363853153,-151.0,0.00016438,2]
[408869847,1774363853162,-151.0,0.00016438,2]
[408869848,1774363853172,-151.0,0.00016438,2]
[408869849,1774363853181,-151.0,0.00016438,2]
[408869850,1774363853190,-151.0,0.00016438,2]